[Event "*** SCC Grand Prix: Titled Tuesday Blitz"]
[Site "Chess.com"]
[Date "2020.07.07"]
[Round "9"]
[White "SHIVACalypso"]
[Black "vesalhamedinia"]
[Result "1-0"]
[WhiteElo "2353"]
[BlackElo "2211"]
[TimeControl "180+1"]
[EndTime "11:46:35 PDT"]
[Termination "SHIVACalypso won on time"]

1. Nf3 {[%clk 0:03:00.9]} 1... d5 {[%clk 0:02:59.7]} 2. c4 {[%clk 0:02:56.2]}
2... e6 {[%clk 0:02:59.3]} 3. g3 {[%clk 0:02:56]} 3... Nf6 {[%clk 0:02:59]} 4.
Bg2 {[%clk 0:02:56.3]} 4... Be7 {[%clk 0:02:58.6]} 5. O-O {[%clk 0:02:56.6]}
5... O-O {[%clk 0:02:58.6]} 6. d4 {[%clk 0:02:57.1]} 6... c6 {[%clk 0:02:58.6]}
7. Nc3 {[%clk 0:02:56.3]} 7... Nbd7 {[%clk 0:02:55.9]} 8. Nd2 {[%clk 0:02:56.1]}
8... a5 {[%clk 0:02:55.5]} 9. e4 {[%clk 0:02:56]} 9... dxe4 {[%clk 0:02:54.5]}
10. Ndxe4 {[%clk 0:02:56.9]} 10... Nxe4 {[%clk 0:02:49.9]} 11. Nxe4 {[%clk
0:02:57.8]} 11... Nf6 {[%clk 0:02:50.2]} 12. Be3 {[%clk 0:02:57.3]} 12... a4
{[%clk 0:02:47.9]} 13. Qc2 {[%clk 0:02:54.9]} 13... Ra5 {[%clk 0:02:32.8]} 14.
Rfd1 {[%clk 0:02:45.3]} 14... b5 {[%clk 0:02:25.5]} 15. Nxf6+ {[%clk 0:02:38.5]}
15... Bxf6 {[%clk 0:02:22.9]} 16. d5 {[%clk 0:02:39.4]} 16... cxd5 {[%clk
0:02:18.7]} 17. cxd5 {[%clk 0:02:40.3]} 17... exd5 {[%clk 0:02:18.2]} 18. Rxd5
{[%clk 0:02:37.3]} 18... Qe8 {[%clk 0:02:05]} 19. Rad1 {[%clk 0:02:28.2]} 19...
Be6 {[%clk 0:02:03.9]} 20. Rd6 {[%clk 0:02:21.4]} 20... Qc8 {[%clk 0:01:58.3]}
21. Rc6 {[%clk 0:02:17.1]} 21... Qb8 {[%clk 0:01:51.1]} 22. Bc5 {[%clk
0:02:05.6]} 22... Rd8 {[%clk 0:01:44.1]} 23. Bb4 {[%clk 0:02:00.2]} 23... Ra7
{[%clk 0:01:37.4]} 24. Bd6 {[%clk 0:01:51.7]} 24... Rad7 {[%clk 0:00:40.3]} 25.
Qc5 {[%clk 0:00:56.3]} 25... Qb7 {[%clk 0:00:15.4]} 26. Rb6 {[%clk 0:00:46]}
26... Qa7 {[%clk 0:00:14.6]} 27. Rc1 {[%clk 0:00:42]} 27... h6 {[%clk
0:00:13.5]} 28. Bf1 {[%clk 0:00:39.9]} 28... Bxb2 {[%clk 0:00:10.9]} 29. Rd1
{[%clk 0:00:35.9]} 29... a3 {[%clk 0:00:10.2]} 30. Qxb5 {[%clk 0:00:32.7]} 30...
Bf6 {[%clk 0:00:06.1]} 31. Qc5 {[%clk 0:00:30]} 31... Kh7 {[%clk 0:00:03.3]} 32.
Bb5 {[%clk 0:00:29.8]} 32... Rb7 {[%clk 0:00:02.2]} 33. Bd3+ {[%clk 0:00:14.3]}
1-0

[Event "*** SCC Grand Prix: Titled Tuesday Blitz"]
[Site "Chess.com"]
[Date "2020.07.07"]
[Round "9"]
[White "Sanyura"]
[Black "Timerkhanov"]
[Result "0-1"]
[WhiteElo "2499"]
[BlackElo "2634"]
[TimeControl "180+1"]
[EndTime "11:46:36 PDT"]
[Termination "Timerkhanov won on time"]

1. e4 {[%clk 0:02:52.7]} 1... c5 {[%clk 0:02:59.8]} 2. Nf3 {[%clk 0:02:52.6]}
2... d6 {[%clk 0:03:00]} 3. d4 {[%clk 0:02:53.1]} 3... cxd4 {[%clk 0:03:00.9]}
4. Nxd4 {[%clk 0:02:53.9]} 4... Nf6 {[%clk 0:03:01.2]} 5. Nc3 {[%clk 0:02:54.4]}
5... a6 {[%clk 0:03:01.1]} 6. g3 {[%clk 0:02:52.3]} 6... g6 {[%clk 0:02:59.8]}
7. Bg2 {[%clk 0:02:51.4]} 7... Bg7 {[%clk 0:03:00]} 8. O-O {[%clk 0:02:51.9]}
8... O-O {[%clk 0:03:00.1]} 9. f4 {[%clk 0:02:50.4]} 9... Nc6 {[%clk 0:02:43.9]}
10. Nxc6 {[%clk 0:02:49.5]} 10... bxc6 {[%clk 0:02:44.8]} 11. h3 {[%clk
0:02:37.6]} 11... Nd7 {[%clk 0:02:30.7]} 12. Qf3 {[%clk 0:02:19]} 12... a5
{[%clk 0:02:30]} 13. Rb1 {[%clk 0:02:17]} 13... Rb8 {[%clk 0:02:29.6]} 14. Bd2
{[%clk 0:01:48]} 14... Ba6 {[%clk 0:02:18]} 15. Rfe1 {[%clk 0:01:40]} 15... e6
{[%clk 0:02:04]} 16. b3 {[%clk 0:01:32]} 16... d5 {[%clk 0:02:02.6]} 17. e5
{[%clk 0:01:29.8]} 17... c5 {[%clk 0:02:00.1]} 18. Na4 {[%clk 0:01:25.7]} 18...
Qc7 {[%clk 0:01:55]} 19. Qc3 {[%clk 0:01:23.6]} 19... Bb5 {[%clk 0:01:45.9]} 20.
Qxa5 {[%clk 0:01:14.8]} 20... Qxa5 {[%clk 0:01:25.6]} 21. Bxa5 {[%clk
0:01:15.7]} 21... Ra8 {[%clk 0:01:24.1]} 22. Bc7 {[%clk 0:00:56]} 22... Bxa4
{[%clk 0:01:23.6]} 23. bxa4 {[%clk 0:00:55.5]} 23... Rxa4 {[%clk 0:01:24.5]} 24.
Rb7 {[%clk 0:00:54.8]} 24... Rc8 {[%clk 0:01:20.9]} 25. Bd6 {[%clk 0:00:51.7]}
25... Nf8 {[%clk 0:01:15.8]} 26. Rb5 {[%clk 0:00:16.5]} 26... Rxa2 {[%clk
0:01:12.2]} 27. c4 {[%clk 0:00:16.2]} 27... dxc4 {[%clk 0:01:01.9]} 28. Rc1
{[%clk 0:00:16]} 28... g5 {[%clk 0:00:42.7]} 29. Rxc4 {[%clk 0:00:14.7]} 29...
gxf4 {[%clk 0:00:42.3]} 30. gxf4 {[%clk 0:00:15.6]} 30... Ng6 {[%clk 0:00:42.3]}
31. Rbxc5 {[%clk 0:00:15.1]} 31... Rxc5 {[%clk 0:00:41.2]} 32. Rxc5 {[%clk
0:00:16]} 32... Bh6 {[%clk 0:00:38.1]} 33. Rc8+ {[%clk 0:00:15.3]} 33... Kg7
{[%clk 0:00:37.8]} 34. f5 {[%clk 0:00:13]} 34... exf5 {[%clk 0:00:34.4]} 35. Bd5
{[%clk 0:00:12.9]} 35... Rd2 {[%clk 0:00:32.7]} 36. Bc4 {[%clk 0:00:08.5]} 36...
Bf4 {[%clk 0:00:31.3]} 37. Rc7 {[%clk 0:00:08.1]} 37... Bxe5 {[%clk 0:00:31.5]}
38. Rxf7+ {[%clk 0:00:08.1]} 38... Kh6 {[%clk 0:00:31.6]} 39. Bb4 {[%clk
0:00:04.8]} 39... Rd4 {[%clk 0:00:25.9]} 0-1

[Event "*** SCC Grand Prix: Titled Tuesday Blitz"]
[Site "Chess.com"]
[Date "2020.07.07"]
[Round "9"]
[White "Gareth-Bale11"]
[Black "Balla_Tamas"]
[Result "1-0"]
[WhiteElo "2727"]
[BlackElo "2513"]
[TimeControl "180+1"]
[EndTime "11:46:38 PDT"]
[Termination "Gareth-Bale11 won by resignation"]

1. d4 {[%clk 0:02:59.8]} 1... Nf6 {[%clk 0:02:59.1]} 2. c4 {[%clk 0:02:59.2]}
2... e6 {[%clk 0:02:59.4]} 3. Nf3 {[%clk 0:02:57.1]} 3... b6 {[%clk 0:02:56.8]}
4. a3 {[%clk 0:02:53.2]} 4... Bb7 {[%clk 0:02:55.5]} 5. Nc3 {[%clk 0:02:47.8]}
5... d5 {[%clk 0:02:54.8]} 6. Bg5 {[%clk 0:02:42.8]} 6... Be7 {[%clk 0:02:54]}
7. e3 {[%clk 0:02:36.8]} 7... O-O {[%clk 0:02:52.8]} 8. Rc1 {[%clk 0:02:25.7]}
8... Nbd7 {[%clk 0:02:52.4]} 9. cxd5 {[%clk 0:02:23.3]} 9... exd5 {[%clk
0:02:51.5]} 10. Bd3 {[%clk 0:02:21.6]} 10... Re8 {[%clk 0:02:50.5]} 11. O-O
{[%clk 0:02:21]} 11... Ne4 {[%clk 0:02:47.3]} 12. Bxe7 {[%clk 0:02:20.6]} 12...
Qxe7 {[%clk 0:02:47.2]} 13. Nb5 {[%clk 0:02:20.7]} 13... Rac8 {[%clk 0:02:33.2]}
14. Nxa7 {[%clk 0:02:12.2]} 14... Rb8 {[%clk 0:02:33.3]} 15. Rxc7 {[%clk
0:02:10.6]} 15... Qd8 {[%clk 0:02:29.2]} 16. Nb5 {[%clk 0:02:07.9]} 16... Ba6
{[%clk 0:02:20.9]} 17. Rc1 {[%clk 0:02:03.2]} 17... h6 {[%clk 0:02:11]} 18. Qa4
{[%clk 0:01:59]} 18... Bxb5 {[%clk 0:02:09.3]} 19. Bxb5 {[%clk 0:01:58.1]} 19...
Re7 {[%clk 0:02:10]} 20. Bxd7 {[%clk 0:01:56.7]} 20... Rxd7 {[%clk 0:02:08.9]}
21. Ne5 {[%clk 0:01:56.7]} 21... Rd6 {[%clk 0:02:07.1]} 22. Rc6 {[%clk
0:01:55.9]} 22... Qe8 {[%clk 0:02:03.1]} 23. Rfc1 {[%clk 0:01:52.8]} 23... f6
{[%clk 0:02:02.2]} 24. Nd3 {[%clk 0:01:52.4]} 24... Nc5 {[%clk 0:01:55.7]} 25.
dxc5 {[%clk 0:01:20.7]} 25... Qxc6 {[%clk 0:01:38.1]} 26. Qd4 {[%clk 0:01:09.1]}
26... bxc5 {[%clk 0:01:35.2]} 27. Rxc5 {[%clk 0:01:10]} 27... Qb6 {[%clk
0:01:29.9]} 28. h4 {[%clk 0:01:06.7]} 28... Kh7 {[%clk 0:01:22.8]} 29. h5 {[%clk
0:01:06.4]} 29... Re8 {[%clk 0:01:21.4]} 30. b4 {[%clk 0:00:42.8]} 30... Re4
{[%clk 0:01:20.4]} 31. Qc3 {[%clk 0:00:42.9]} 31... d4 {[%clk 0:01:19.7]} 32.
Qc4 {[%clk 0:00:40.8]} 32... Rd8 {[%clk 0:00:41.7]} 33. Nf4 {[%clk 0:00:32.1]}
33... Qd6 {[%clk 0:00:31.6]} 34. Qd3 {[%clk 0:00:27.2]} 34... f5 {[%clk
0:00:25.1]} 35. Rxf5 {[%clk 0:00:24.7]} 35... dxe3 {[%clk 0:00:25]} 36. Qxe4
{[%clk 0:00:22.2]} 36... exf2+ {[%clk 0:00:24.6]} 37. Kxf2 {[%clk 0:00:20.5]}
37... Qd4+ {[%clk 0:00:24.6]} 38. Qxd4 {[%clk 0:00:20.5]} 38... Rxd4 {[%clk
0:00:25.5]} 39. Ke3 {[%clk 0:00:20.6]} 39... Rd1 {[%clk 0:00:25.2]} 40. Nd3
{[%clk 0:00:20.8]} 40... Ra1 {[%clk 0:00:25.2]} 41. b5 {[%clk 0:00:20.8]} 41...
Rxa3 {[%clk 0:00:25.2]} 42. Kd4 {[%clk 0:00:21.2]} 42... Rb3 {[%clk 0:00:26.1]}
43. Kc4 {[%clk 0:00:20.7]} 1-0

[Event "*** SCC Grand Prix: Titled Tuesday Blitz"]
[Site "Chess.com"]
[Date "2020.07.07"]
[Round "9"]
[White "Fluffey"]
[Black "BJthechessgod"]
[Result "0-1"]
[WhiteElo "2443"]
[BlackElo "2348"]
[TimeControl "180+1"]
[EndTime "11:46:39 PDT"]
[Termination "BJthechessgod won on time"]

1. e4 {[%clk 0:03:00.9]} 1... d6 {[%clk 0:02:51.4]} 2. Ne2 {[%clk 0:03:00.5]}
2... Nf6 {[%clk 0:02:46.9]} 3. Nbc3 {[%clk 0:02:59.3]} 3... g6 {[%clk
0:02:32.2]} 4. d4 {[%clk 0:02:54.7]} 4... Bg7 {[%clk 0:02:31.3]} 5. h4 {[%clk
0:02:41.7]} 5... c6 {[%clk 0:02:28.8]} 6. f3 {[%clk 0:02:31.1]} 6... Nbd7 {[%clk
0:02:26.9]} 7. Be3 {[%clk 0:02:28.3]} 7... O-O {[%clk 0:02:17.1]} 8. Qd2 {[%clk
0:02:26.7]} 8... b5 {[%clk 0:02:14.3]} 9. a3 {[%clk 0:02:25]} 9... e5 {[%clk
0:02:08]} 10. Bh6 {[%clk 0:02:18.3]} 10... a5 {[%clk 0:02:01.8]} 11. g4 {[%clk
0:01:51.5]} 11... exd4 {[%clk 0:01:51.3]} 12. Nxd4 {[%clk 0:01:49]} 12... Ne5
{[%clk 0:01:52.2]} 13. Bg2 {[%clk 0:01:43.1]} 13... Bb7 {[%clk 0:01:25]} 14. b3
{[%clk 0:01:41.6]} 14... b4 {[%clk 0:01:24.1]} 15. axb4 {[%clk 0:01:24.1]} 15...
axb4 {[%clk 0:01:23.4]} 16. Rxa8 {[%clk 0:01:24.6]} 16... bxc3 {[%clk
0:01:19.8]} 17. Rxd8 {[%clk 0:01:12.2]} 17... cxd2+ {[%clk 0:01:19.1]} 18. Bxd2
{[%clk 0:01:08.7]} 18... Rxd8 {[%clk 0:01:18.7]} 19. h5 {[%clk 0:01:05.3]} 19...
c5 {[%clk 0:01:10.5]} 20. Nb5 {[%clk 0:00:59.5]} 20... d5 {[%clk 0:01:10.9]} 21.
h6 {[%clk 0:00:56.2]} 21... Bf8 {[%clk 0:01:09.7]} 22. g5 {[%clk 0:00:46.7]}
22... Ne8 {[%clk 0:00:54]} 23. f4 {[%clk 0:00:46.8]} 23... Nc6 {[%clk
0:00:48.1]} 24. exd5 {[%clk 0:00:39.9]} 24... Nd4 {[%clk 0:00:48.2]} 25. Nxd4
{[%clk 0:00:22.2]} 25... cxd4 {[%clk 0:00:48.3]} 26. Ke2 {[%clk 0:00:18.9]}
26... Bxd5 {[%clk 0:00:46.7]} 27. Bxd5 {[%clk 0:00:18.7]} 27... Rxd5 {[%clk
0:00:47.6]} 28. Kd3 {[%clk 0:00:19]} 28... Nc7 {[%clk 0:00:41.6]} 29. Ra1 {[%clk
0:00:17.3]} 29... Ne6 {[%clk 0:00:34.8]} 30. Ra8 {[%clk 0:00:14.4]} 30... Rd8
{[%clk 0:00:34.7]} 31. Ra7 {[%clk 0:00:11.7]} 31... Bd6 {[%clk 0:00:31.3]} 32.
Ke4 {[%clk 0:00:10.2]} 32... Nc5+ {[%clk 0:00:29.3]} 33. Kf3 {[%clk 0:00:10.4]}
33... d3 {[%clk 0:00:29.3]} 34. cxd3 {[%clk 0:00:08.5]} 34... Nxb3 {[%clk
0:00:29.3]} 35. Bc3 {[%clk 0:00:07.1]} 35... Nc5 {[%clk 0:00:27.8]} 36. Bf6
{[%clk 0:00:06.8]} 36... Re8 {[%clk 0:00:25.7]} 37. Ra5 {[%clk 0:00:02.3]} 37...
Nxd3 {[%clk 0:00:19.4]} 38. Rd5 {[%clk 0:00:02.1]} 38... Ne1+ {[%clk 0:00:20]}
39. Kf2 {[%clk 0:00:02.1]} 39... Bxf4 {[%clk 0:00:19.7]} 0-1

[Event "*** SCC Grand Prix: Titled Tuesday Blitz"]
[Site "Chess.com"]
[Date "2020.07.07"]
[Round "9"]
[White "SamuelGhimpu2003"]
[Black "Jungle_Jaguar"]
[Result "0-1"]
[WhiteElo "2515"]
[BlackElo "2660"]
[TimeControl "180+1"]
[EndTime "11:46:41 PDT"]
[Termination "Jungle_Jaguar won on time"]

1. d4 {[%clk 0:03:00.9]} 1... d5 {[%clk 0:02:56.7]} 2. Bf4 {[%clk 0:02:59.1]}
2... c5 {[%clk 0:02:55.7]} 3. e3 {[%clk 0:02:49.7]} 3... Nf6 {[%clk 0:02:55.2]}
4. Nc3 {[%clk 0:02:48.6]} 4... Nc6 {[%clk 0:02:51.4]} 5. Nb5 {[%clk 0:02:47.3]}
5... e5 {[%clk 0:02:48]} 6. dxe5 {[%clk 0:02:48.2]} 6... a6 {[%clk 0:02:37.4]}
7. Nc3 {[%clk 0:02:26.8]} 7... d4 {[%clk 0:02:25.9]} 8. exd4 {[%clk 0:02:23.6]}
8... cxd4 {[%clk 0:02:22.8]} 9. exf6 {[%clk 0:02:16.8]} 9... dxc3 {[%clk
0:02:20.8]} 10. Qxd8+ {[%clk 0:02:06.3]} 10... Nxd8 {[%clk 0:02:21.2]} 11. Be5
{[%clk 0:01:36.2]} 11... cxb2 {[%clk 0:02:15.1]} 12. Bxb2 {[%clk 0:01:37.1]}
12... g6 {[%clk 0:02:03.5]} 13. Nf3 {[%clk 0:01:31.2]} 13... Bb4+ {[%clk
0:02:00.6]} 14. c3 {[%clk 0:01:29.8]} 14... Bc5 {[%clk 0:02:00.4]} 15. Bc4
{[%clk 0:01:27.6]} 15... Be6 {[%clk 0:01:58.6]} 16. Bb3 {[%clk 0:01:27.8]} 16...
O-O {[%clk 0:01:51.2]} 17. O-O {[%clk 0:01:27.6]} 17... a5 {[%clk 0:01:45]} 18.
Nd4 {[%clk 0:01:23.3]} 18... a4 {[%clk 0:01:37]} 19. Nxe6 {[%clk 0:01:11.8]}
19... fxe6 {[%clk 0:01:36.8]} 20. Bc2 {[%clk 0:00:53.3]} 20... a3 {[%clk
0:01:34.9]} 21. Bc1 {[%clk 0:00:51.4]} 21... Rxf6 {[%clk 0:01:35.1]} 22. Rb1
{[%clk 0:00:49.7]} 22... b6 {[%clk 0:01:10.9]} 23. Bg5 {[%clk 0:00:47.7]} 23...
Rf8 {[%clk 0:01:07.3]} 24. Bb3 {[%clk 0:00:47.8]} 24... Kg7 {[%clk 0:01:04.7]}
25. Rbd1 {[%clk 0:00:23.6]} 25... Nf7 {[%clk 0:01:04.7]} 26. Be3 {[%clk
0:00:19.6]} 26... Bxe3 {[%clk 0:00:46.1]} 27. fxe3 {[%clk 0:00:20.5]} 27... Ng5
{[%clk 0:00:46.8]} 28. h4 {[%clk 0:00:16.5]} 28... Ne4 {[%clk 0:00:46.1]} 29.
Bxe6 {[%clk 0:00:12.8]} 29... Nxc3 {[%clk 0:00:43.1]} 30. Rd7+ {[%clk
0:00:12.7]} 30... Kh6 {[%clk 0:00:43.7]} 31. Rxf8 {[%clk 0:00:07.5]} 31... Rxf8
{[%clk 0:00:44.6]} 32. Rb7 {[%clk 0:00:06.8]} 32... b5 {[%clk 0:00:35.9]} 33.
Kh2 {[%clk 0:00:02.4]} 33... Re8 {[%clk 0:00:35.3]} 34. Bg4 {[%clk 0:00:01.6]}
34... Rxe3 {[%clk 0:00:32.8]} 35. Bd7 {[%clk 0:00:02.2]} 35... Re7 {[%clk
0:00:31.4]} 36. g4 {[%clk 0:00:01.4]} 36... Nxa2 {[%clk 0:00:29.2]} 37. g5+
{[%clk 0:00:01.7]} 37... Kg7 {[%clk 0:00:28.8]} 38. Kg3 {[%clk 0:00:02.2]} 38...
Nc3 {[%clk 0:00:28.4]} 0-1

[Event "*** SCC Grand Prix: Titled Tuesday Blitz"]
[Site "Chess.com"]
[Date "2020.07.07"]
[Round "9"]
[White "colegiodemadrid"]
[Black "Sychev_Klementy"]
[Result "1/2-1/2"]
[WhiteElo "2422"]
[BlackElo "2765"]
[TimeControl "180+1"]
[EndTime "11:46:41 PDT"]
[Termination "Game drawn by repetition"]

1. e4 {[%clk 0:03:00.9]} 1... e5 {[%clk 0:02:54.8]} 2. Nf3 {[%clk 0:03:00.3]}
2... Nc6 {[%clk 0:02:55.4]} 3. Bb5 {[%clk 0:03:00.9]} 3... a6 {[%clk 0:02:55.3]}
4. Ba4 {[%clk 0:03:01.4]} 4... b5 {[%clk 0:02:55.5]} 5. Bb3 {[%clk 0:03:00.6]}
5... Na5 {[%clk 0:02:55.7]} 6. O-O {[%clk 0:02:53.9]} 6... d6 {[%clk 0:02:55.9]}
7. Nc3 {[%clk 0:02:50.8]} 7... Nf6 {[%clk 0:02:53]} 8. Re1 {[%clk 0:02:49.3]}
8... Be7 {[%clk 0:02:50.7]} 9. Nd5 {[%clk 0:02:43.3]} 9... Nxb3 {[%clk
0:02:46.8]} 10. Nxf6+ {[%clk 0:02:36.9]} 10... Bxf6 {[%clk 0:02:45.4]} 11. axb3
{[%clk 0:02:37.8]} 11... c5 {[%clk 0:02:44.8]} 12. d3 {[%clk 0:02:34.8]} 12...
O-O {[%clk 0:02:44]} 13. Bd2 {[%clk 0:02:28.4]} 13... Bb7 {[%clk 0:02:29.4]} 14.
Qe2 {[%clk 0:02:20.7]} 14... Be7 {[%clk 0:02:27.2]} 15. Ba5 {[%clk 0:02:08.1]}
15... Qd7 {[%clk 0:02:20.9]} 16. b4 {[%clk 0:02:01.6]} 16... cxb4 {[%clk
0:02:06.1]} 17. Bxb4 {[%clk 0:02:02.5]} 17... f5 {[%clk 0:02:04.8]} 18. Nd2
{[%clk 0:02:00.8]} 18... Rac8 {[%clk 0:01:59.1]} 19. Nf1 {[%clk 0:01:59.1]}
19... fxe4 {[%clk 0:01:57.9]} 20. dxe4 {[%clk 0:01:56.5]} 20... Rc4 {[%clk
0:01:57.9]} 21. Bc3 {[%clk 0:01:49.2]} 21... Rxe4 {[%clk 0:01:56.6]} 22. Qd3
{[%clk 0:01:49.3]} 22... Rg4 {[%clk 0:01:43.1]} 23. Ne3 {[%clk 0:01:42.2]} 23...
Rg5 {[%clk 0:01:35.1]} 24. Nd5 {[%clk 0:01:32.8]} 24... Bd8 {[%clk 0:01:30.3]}
25. Rad1 {[%clk 0:01:29.3]} 25... h5 {[%clk 0:01:14.5]} 26. Bxe5 {[%clk
0:01:22.2]} 26... Qc6 {[%clk 0:01:11.6]} 27. f4 {[%clk 0:01:17]} 27... Rgf5
{[%clk 0:00:53.5]} 28. Bxg7 {[%clk 0:01:05.4]} 28... Kxg7 {[%clk 0:00:51.8]} 29.
Qg3+ {[%clk 0:01:03.2]} 29... Kh7 {[%clk 0:00:48.6]} 30. Ne7 {[%clk 0:00:39.8]}
30... Qc5+ {[%clk 0:00:37.2]} 31. Kh1 {[%clk 0:00:33.9]} 31... R5f6 {[%clk
0:00:35.2]} 32. f5 {[%clk 0:00:22.1]} 32... R8f7 {[%clk 0:00:31.9]} 33. Qg8+
{[%clk 0:00:12]} 33... Kh6 {[%clk 0:00:29.6]} 34. Qh8+ {[%clk 0:00:10.8]} 34...
Kg5 {[%clk 0:00:28.2]} 35. Qg8+ {[%clk 0:00:10.3]} 35... Kh6 {[%clk 0:00:23.5]}
36. Qh8+ {[%clk 0:00:10.1]} 36... Kg5 {[%clk 0:00:20.5]} 37. Qg8+ {[%clk
0:00:08]} 37... Kh6 {[%clk 0:00:18.8]} 1/2-1/2

[Event "*** SCC Grand Prix: Titled Tuesday Blitz"]
[Site "Chess.com"]
[Date "2020.07.07"]
[Round "9"]
[White "Korchmar_Vasiliy"]
[Black "Matibar"]
[Result "0-1"]
[WhiteElo "2633"]
[BlackElo "2761"]
[TimeControl "180+1"]
[EndTime "11:46:44 PDT"]
[Termination "Matibar won on time"]

1. d4 {[%clk 0:03:00.9]} 1... f5 {[%clk 0:02:57.9]} 2. g3 {[%clk 0:02:57.8]}
2... Nf6 {[%clk 0:02:57.9]} 3. Bg2 {[%clk 0:02:58.3]} 3... g6 {[%clk 0:02:58.6]}
4. Nf3 {[%clk 0:02:59]} 4... Bg7 {[%clk 0:02:59.2]} 5. O-O {[%clk 0:02:59.8]}
5... O-O {[%clk 0:02:59.7]} 6. c4 {[%clk 0:03:00.5]} 6... d6 {[%clk 0:03:00.3]}
7. Nc3 {[%clk 0:03:00.4]} 7... c6 {[%clk 0:03:00.4]} 8. b3 {[%clk 0:02:53.6]}
8... Na6 {[%clk 0:02:56]} 9. Bb2 {[%clk 0:02:49.4]} 9... Bd7 {[%clk 0:02:55.3]}
10. a3 {[%clk 0:02:44.6]} 10... Qe8 {[%clk 0:02:51.1]} 11. Re1 {[%clk
0:02:38.5]} 11... h6 {[%clk 0:02:41.3]} 12. b4 {[%clk 0:02:35.6]} 12... Qf7
{[%clk 0:02:36]} 13. d5 {[%clk 0:02:17.3]} 13... Rac8 {[%clk 0:02:31.3]} 14. Nd2
{[%clk 0:01:46.8]} 14... Nc7 {[%clk 0:02:09.6]} 15. Qb3 {[%clk 0:01:42.3]} 15...
g5 {[%clk 0:01:56.1]} 16. e3 {[%clk 0:01:19.7]} 16... Ng4 {[%clk 0:01:39.4]} 17.
Nf3 {[%clk 0:01:08.2]} 17... cxd5 {[%clk 0:01:37.3]} 18. Nxd5 {[%clk 0:00:51]}
18... Bxb2 {[%clk 0:01:24]} 19. Qxb2 {[%clk 0:00:48]} 19... Nxd5 {[%clk
0:01:24.5]} 20. cxd5 {[%clk 0:00:48.9]} 20... Qg7 {[%clk 0:01:23]} 21. Nd4
{[%clk 0:00:41.2]} 21... Ne5 {[%clk 0:01:22.9]} 22. Qe2 {[%clk 0:00:33.2]} 22...
f4 {[%clk 0:01:22.7]} 23. Rac1 {[%clk 0:00:24.2]} 23... Bg4 {[%clk 0:01:12.1]}
24. f3 {[%clk 0:00:20]} 24... Bd7 {[%clk 0:01:09]} 25. e4 {[%clk 0:00:17.6]}
25... Qf6 {[%clk 0:00:58]} 26. Qd2 {[%clk 0:00:16.6]} 26... Nc4 {[%clk 0:00:52]}
27. Qd3 {[%clk 0:00:17.1]} 27... Ne5 {[%clk 0:00:52.3]} 28. Qd2 {[%clk
0:00:16.8]} 28... Kg7 {[%clk 0:00:52.6]} 29. g4 {[%clk 0:00:15.2]} 29... h5
{[%clk 0:00:52.1]} 30. h3 {[%clk 0:00:14.7]} 30... hxg4 {[%clk 0:00:52]} 31.
hxg4 {[%clk 0:00:15.6]} 31... Rxc1 {[%clk 0:00:49.3]} 32. Rxc1 {[%clk
0:00:15.5]} 32... Rc8 {[%clk 0:00:49.9]} 33. Rxc8 {[%clk 0:00:15.2]} 33... Bxc8
{[%clk 0:00:50.3]} 34. Qc3 {[%clk 0:00:15.3]} 34... Bd7 {[%clk 0:00:49.1]} 35.
Qc7 {[%clk 0:00:15.5]} 35... Nxg4 {[%clk 0:00:41.4]} 36. fxg4 {[%clk 0:00:08.4]}
36... Qxd4+ {[%clk 0:00:41.6]} 37. Kh2 {[%clk 0:00:09.1]} 37... Qe5 {[%clk
0:00:37.4]} 38. Bf3 {[%clk 0:00:04.9]} 38... Qb2+ {[%clk 0:00:31.4]} 39. Kg1
{[%clk 0:00:02.5]} 39... Qd4+ {[%clk 0:00:23.1]} 40. Kg2 {[%clk 0:00:02.9]}
40... Qd2+ {[%clk 0:00:21.3]} 41. Kg1 {[%clk 0:00:03.4]} 41... Qe1+ {[%clk
0:00:21.5]} 0-1

[Event "*** SCC Grand Prix: Titled Tuesday Blitz"]
[Site "Chess.com"]
[Date "2020.07.07"]
[Round "9"]
[White "hectorfiori"]
[Black "talaicito"]
[Result "1-0"]
[WhiteElo "2328"]
[BlackElo "2154"]
[TimeControl "180+1"]
[EndTime "11:46:44 PDT"]
[Termination "hectorfiori won on time"]

1. e4 {[%clk 0:03:00.9]} 1... e5 {[%clk 0:02:59.1]} 2. Nf3 {[%clk 0:03:00.1]}
2... Nc6 {[%clk 0:02:59.1]} 3. d4 {[%clk 0:02:58.2]} 3... exd4 {[%clk
0:02:58.6]} 4. Nxd4 {[%clk 0:02:58.6]} 4... Qf6 {[%clk 0:02:58.8]} 5. Be3 {[%clk
0:02:52.5]} 5... Bc5 {[%clk 0:02:58.6]} 6. Nxc6 {[%clk 0:02:49.9]} 6... Bxe3
{[%clk 0:02:48.7]} 7. fxe3 {[%clk 0:02:50.8]} 7... bxc6 {[%clk 0:02:31.6]} 8.
Nc3 {[%clk 0:02:47.5]} 8... Rb8 {[%clk 0:02:28.9]} 9. Bc4 {[%clk 0:02:11.8]}
9... Rxb2 {[%clk 0:02:00.9]} 10. Qd2 {[%clk 0:02:03]} 10... Nh6 {[%clk
0:01:03.8]} 11. Bb3 {[%clk 0:01:49.8]} 11... O-O {[%clk 0:00:41.7]} 12. O-O-O
{[%clk 0:01:45.2]} 12... Rxb3 {[%clk 0:00:40.8]} 13. axb3 {[%clk 0:01:45.5]}
13... d6 {[%clk 0:00:38.5]} 14. Qd4 {[%clk 0:01:34.1]} 14... Qg5 {[%clk
0:00:30.3]} 15. h4 {[%clk 0:01:28.1]} 15... Qa5 {[%clk 0:00:28]} 16. Kb2 {[%clk
0:01:23]} 16... c5 {[%clk 0:00:21.2]} 17. Qd5 {[%clk 0:01:14.6]} 17... Be6
{[%clk 0:00:19.3]} 18. Qc6 {[%clk 0:01:05.8]} 18... Ng4 {[%clk 0:00:18.5]} 19.
Ra1 {[%clk 0:00:57.3]} 19... Qb6 {[%clk 0:00:17.6]} 20. Qxb6 {[%clk 0:00:54.2]}
20... axb6 {[%clk 0:00:17.8]} 21. Ra7 {[%clk 0:00:50.8]} 21... c6 {[%clk
0:00:16.5]} 22. Re1 {[%clk 0:00:42.8]} 22... b5 {[%clk 0:00:15.6]} 23. Ra6
{[%clk 0:00:37.4]} 23... b4 {[%clk 0:00:15]} 24. Na4 {[%clk 0:00:36]} 24... Bd7
{[%clk 0:00:15]} 25. Ra7 {[%clk 0:00:34.6]} 25... Be6 {[%clk 0:00:14.7]} 26. Rc7
{[%clk 0:00:33.3]} 26... Ne5 {[%clk 0:00:14.1]} 27. Rd1 {[%clk 0:00:29.8]} 27...
Ng4 {[%clk 0:00:08.2]} 28. Rxc6 {[%clk 0:00:24.8]} 28... Nxe3 {[%clk 0:00:08]}
29. Rdxd6 {[%clk 0:00:23.4]} 29... c4 {[%clk 0:00:08.1]} 30. Nb6 {[%clk
0:00:10.9]} 30... cxb3 {[%clk 0:00:07.2]} 31. cxb3 {[%clk 0:00:11.8]} 31... Nxg2
{[%clk 0:00:07.3]} 32. Nd7 {[%clk 0:00:10.5]} 32... Re8 {[%clk 0:00:05.8]} 33.
Rb6 {[%clk 0:00:09]} 33... h6 {[%clk 0:00:05.6]} 34. Nc5 {[%clk 0:00:08.7]}
34... Nf4 {[%clk 0:00:03.8]} 35. Nxe6 {[%clk 0:00:07.8]} 35... Nxe6 {[%clk
0:00:02.6]} 36. Rxb4 {[%clk 0:00:08.1]} 36... g6 {[%clk 0:00:01.4]} 37. Ra6
{[%clk 0:00:04.9]} 1-0